Cogmind - Beta 11.1 @@@ ROGUE MODE // 2022.05.01 @ 04:17:44 Player: Olga Result: Self-destructed Performance ------------- Evolutions (1) 500 Regions Visited (2) 400 Robots Destroyed (8) 40 Value Destroyed (216) 216 Prototype IDs (0) 0 Alien Tech Used (0) 0 Bonus (0) 0 TOTAL SCORE: 1156 Bonus ------- None Cogmind --------- Core Integrity 101/400 Matter 165/300 Energy 100/100 System Corruption 0% Temperature Cool (2) Movement Flying (35) Location -9/Materials Parts ------- > --- POWER (1) -------- (None) > --- PROPULSION (2) --- VTOL Module > --- UTILITY (4) ------ (None) > --- WEAPON (2) ------- Heavy Hammer > --- INVENTORY (5) ---- Compact Wheel Medium Armor Plating Medium Laser Grenade Launcher Grenade Launcher Peak State ------------ > --- POWER ------------ (None) > --- PROPULSION ------- Wheel VTOL Module > --- UTILITY ---------- Medium Armor Plating > --- WEAPON ----------- Heavy Hammer > --- INVENTORY -------- Compact Wheel Medium Laser [Rating: 7] Favorites ----------- Power Ion Engine Engine Ion Engine Propulsion VTOL Module Leg Aluminum Leg Wheel Wheel Flight Unit VTOL Module Utility Disposable Heat Sink Device Disposable Heat Sink Storage Small Storage Unit Protection Medium Armor Plating Weapon Light Assault Rifle Energy Gun Medium Laser Ballistic Gun Light Assault Rifle Launcher Grenade Launcher Impact Weapon Heavy Hammer Build | -11 -10 -9 ------- Run | Scr Mat Mat Slots Evolved 2 | . . 2 Power . | . . . Propulsion . | . . . Utility 2 | . . 2 Weapon . | . . . Parts Attached 6 | . . 6 Power . | . . . Engine . | . . . Core . | . . . Reactor . | . . . Propulsion 2 | . . 2 Treads . | . . . Leg . | . . . Wheel 1 | . . 1 Hover . | . . . Flight 1 | . . 1 Utility 2 | . . 2 Device 1 | . . 1 Storage . | . . . Processor . | . . . Hackware . | . . . Protection 1 | . . 1 Artifact . | . . . Weapon 2 | . . 2 Energy Gun . | . . . Energy Cannon . | . . . Ballistic Gun . | . . . Ballistic Cannon . | . . . Launcher 1 | . . 1 Special Weapon . | . . . Impact Weapon 1 | . . 1 Slashing Weapon . | . . . Piercing Weapon . | . . . Special Melee Weapon . | . . . Unidentified Prototypes . | . . . Parts Lost 1 | . . 1 Power . | . . . Propulsion . | . . . Utility . | . . . Weapon 1 | . . 1 Highest Loss Streak 1 | . . 1 To Critical Strikes . | . . . Average Slot Usage (%) 29 | . 28 30 Wheel 1 | . . 1 Flight 6 | . . 10 Device 1 | . . 2 Protection 1 | . . 1 Energy Gun 8 | . 14 4 Ballistic Gun 8 | . 14 4 Launcher 1 | . . 1 Impact Weapon 2 | . . 4 Naked Turns . | . . . Heaviest Build 10 | 3 3 10 Greatest Support 10 | 3 3 10 Greatest Overweight (x) . | . . . Average Overweight (x) . | . . . Largest Inventory Capacity 8 | 8 5 5 Average Capacity 5 | 8 5 5 Most Carried 6 | 6 5 5 Average Carried 4 | 6 5 4 Final Capacity 5 | 5 5 5 Final Carried 5 | 5 5 5 Class Distribution -------------------- 100% | Mutant Dominant Class ---------------- Mutant | -10/Materials Mutant | -9/Materials Resources | -11 -10 -9 ----------- Run | Scr Mat Mat Matter Collected 236 | 200 16 20 Remotely . | . . . Salvage Created 154 | . 102 52 Parts 9 | . 6 3 Haulers Intercepted . | . . . Recyclers Shooed . | . . . Parts Field Recycled . | . . . Retrieved Matter . | . . . Parts Self-Destructed . | . . . Prevented . | . . . Kills | -11 -10 -9 ------- Run | Scr Mat Mat Combat Hostiles Destroyed 7 | . 3 4 Melee 1 | . . 1 Guns 3 | . 3 . AOE 3 | . . 3 Classes Destroyed 3 | . 2 1 Recycler 1 | . 1 . Swarmer 3 | . 3 . Sentry 4 | . . 4 Best Kill Streak 4 | . 4 3 Combat Bots Only 3 | . 3 3 Max Kills in Single Turn 1 | . 1 1 Gunslinging . | . . . Exploded 1 | . . 1 Melee 1 | . . 1 Uniques/NPCs Destroyed . | . . . Combat | -11 -10 -9 -------- Run | Scr Mat Mat Damage Taken 625 | . 132 493 Core 374 | . 75 299 Absorbed by Shields . | . . . Core Remaining (%) 85 | 100 70 . Volleys Fired 26 | . 16 10 Largest 2 | . 2 1 Hottest 70 | . 70 30 Shots Fired 42 | . 32 10 Gun 32 | . 32 . Cannon . | . . . Launcher 10 | . . 10 Special . | . . . Kinetic 16 | . 16 . Thermal 16 | . 16 . Explosive 10 | . . 10 Electromagnetic . | . . . Robot Hit Streak 9 | . 9 8 Robot Miss Streak 3 | . 3 1 Penetration Max . | . . . Secondary Targets 1 | . 1 . Max Gunslinging Chain 1 | . 1 . Shots Hit Robots 31 | . 20 11 Core Hits 19 | . 7 12 Critical Kills . | . . . Critical Parts Destroyed 1 | . . 1 Critical Strikes 3 | . 2 1 Burn 2 | . 2 . Smash 1 | . . 1 Melee Attacks 3 | . . 3 Impact 3 | . . 3 Slashing . | . . . Piercing . | . . . Sneak Attacks . | . . . Combat Hostiles . | . . . Follow-up Attacks . | . . . Damage Inflicted 636 | . 198 438 Guns 198 | . 198 . Cannons . | . . . Explosions 354 | . . 354 Melee 84 | . . 84 Ramming . | . . . Kinetic 74 | . 74 . Thermal 124 | . 124 . Explosive 354 | . . 354 Electromagnetic . | . . . Impact 84 | . . 84 Slashing . | . . . Piercing . | . . . Highest Corruption . | . . . Average Corruption . | . . . Corruption Purged . | . . . Corruption Blocked . | . . . Overload Shots . | . . . Overflow Damage 32 | . . 32 Projectiles . | . . . Explosions . | . . . Melee 32 | . . 32 Knockbacks . | . . . Impact . | . . . Kinetic . | . . . Secondary . | . . . Self-Inflicted Damage 85 | . . 85 Shots 7 | . . 7 Rammed . | . . . Targets Rammed . | . . . Kicked . | . . . Crushed . | . . . Highest Temperature 40 | . 40 11 Average Temperature 18 | . 19 11 Received Heat Transfer 180 | . 18 162 Siege Activations . | . . . Robots Corrupted . | . . . Combat Hostiles . | . . . Parts Fried . | . . . Impact Corruptions 1 | . . 1 Robots Melted . | . . . Combat Hostiles . | . . . Parts Melted 1 | . 1 . Heat Transferred 518 | . 518 . Parts Sabotaged . | . . . Parts Stolen . | . . . Parts Stripped . | . . . Power Chain Reactions . | . . . Missiles Intercepted . | . . . Alert | -11 -10 -9 ------- Run | Scr Mat Mat Peak Influence 323 | . 84 323 Initial 35 | . . 35 Average 117 | . 31 182 Maximum Alert Level 1 | . . 1 Low Security (%) 69 | 100 100 47 Level 1 30 | . . 52 Level 2 . | . . . Level 3 . | . . . Level 4 . | . . . Level 5 . | . . . High Security . | . . . Max Security . | . . . Squads Dispatched 2 | . 1 1 Investigation 1 | . . 1 Extermination . | . . . Reinforcement 1 | . 1 . Assault . | . . . Garrison . | . . . Intercept . | . . . Searches Triggered . | . . . Construction Impeded . | . . . Haulers Reinforced . | . . . Active Scanning Responses . | . . . Cargo Convoy Interrupts . | . . . Stealth | -11 -10 -9 --------- Run | Scr Mat Mat Distress Signals 1 | . 1 . Communications Jammed . | . . . Distress Signals . | . . . Times Spotted 19 | . 7 12 Peak Tracking Total 7 | . 5 7 Tactical Retreats . | . . . Traps | -11 -10 -9 ------- Run | Scr Mat Mat Traps Triggered . | . . . Indirectly . | . . . Trap Hack Attempts . | . . . Triggered . | . . . Disarmed . | . . . Reprogrammed . | . . . Reused . | . . . Traps Extracted . | . . . Installed . | . . . Triggered . | . . . Machines | -11 -10 -9 ---------- Run | Scr Mat Mat Machines Disabled . | . . . Max in Single Turn . | . . . Machines Sabotaged . | . . . Garrisons Compromised . | . . . Overloaded Fab Kills . | . . . Hacking | -11 -10 -9 --------- Run | Scr Mat Mat Machines Accessed 4 | . 2 2 Terminals 4 | . 2 2 Fabricators . | . . . Repair Stations . | . . . Recycling Units . | . . . Scanalyzers . | . . . Garrison Access . | . . . Total Hacks 10 | . 3 7 Successful 2 | . 1 1 Failed 8 | . 2 6 Catastrophic 2 | . 1 1 Database Lockouts . | . . . Manual 3 | . 3 . Terminals 10 | . 3 7 Fabricators . | . . . Repair Stations . | . . . Recycling Units . | . . . Scanalyzers . | . . . Garrison Access . | . . . Terminal Hacks 2 | . 1 1 Level Access Points 1 | . 1 . Branch Access Points 1 | . . 1 Fabricator Hacks . | . . . Repair Station Hacks . | . . . Recycling Unit Hacks . | . . . Scanalyzer . | . . . Garrison Access Hacks . | . . . Unauthorized Hacks . | . . . Terminals . | . . . Fabricators . | . . . Repair Stations . | . . . Recycling Units . | . . . Scanalyzers . | . . . Garrison Access . | . . . Data Cores Recovered . | . . . Used . | . . . Hacking Detections 3 | . 1 2 Full Trace Events 2 | . 1 1 Feedback Events . | . . . Feedback Blocked . | . . . Robot Schematics Acquired . | . . . Robots Built . | . . . Authchips . | . . . Time . | . . . Total Robot Build Rating . | . . . Part Schematics Acquired . | . . . Parts Built . | . . . Authchips . | . . . Time . | . . . Total Part Build Rating . | . . . Parts Repaired . | . . . Time . | . . . Parts Recycled . | . . . Recycled Matter . | . . . Retrieved Matter . | . . . Retrieved Components . | . . . Parts Scanalyzed . | . . . Part Schematics Acquired . | . . . Parts Damaged . | . . . Bothacking | -11 -10 -9 ------------ Run | Scr Mat Mat Used RIF Installer . | . . . Robots Hacked . | . . . Non-combat . | . . . Combat . | . . . Robot Hacks Applied . | . . . Relay Couplers Released . | . . . Fabnet Peak Effective % . | . . . Robots Rewired . | . . . Allies Hacked . | . . . Hacks Repelled . | . . . Allies | -11 -10 -9 -------- Run | Scr Mat Mat Total Allies . | . . . Largest Group . | . . . Highest-Rated Group . | . . . Highest-Rated Ally . | . . . Total Orders . | . . . Ally Attacks . | . . . Total Damage . | . . . Kills . | . . . Allies Corrupted . | . . . Allies Melted . | . . . Intel | -11 -10 -9 ------- Run | Scr Mat Mat Robot Analysis Total . | . . . Derelict Logs Recovered . | . . . Drone Launches . | . . . Drone Recoveries . | . . . Exploration | -11 -10 -9 ------------- Run | Scr Mat Mat Turns Passed 221 | 2 92 127 Spaces Moved 309 | 1 89 219 Core 111 | 1 89 21 Treads . | . . . Legs . | . . . Wheels 5 | . . 5 Hover . | . . . Flight 193 | . . 193 Fastest Speed 35 | 50 50 35 Average Speed 41 | 50 50 37 Slowest Speed 80 | 50 50 80 Overloaded Moves . | . . . Propulsion Burnouts . | . . . Robots Hopped 5 | . . 5 Cave-ins Triggered . | . . . Exploration Rate (%) 16 | 2 26 22 Regions Visited 2 Branch Regions . Pre-discovered Areas . | . . . Known Exits Taken 1 | . 1 . Unknown Exits Taken 1 | 1 . . Scrap Searched . | . . . Spaces Dug . | . . . Terrain Destroyed 32 | . . 32 Melee . | . . . Projectile . | . . . AOE 32 | . . 32 Terrain Rammed . | . . . Walls Destroyed . | . . . Machines Disabled . | . . . Actions | -11 -10 -9 --------- Run | Scr Mat Mat Total 357 | 4 107 246 Wait 4 | . 3 1 Move 297 | . 88 209 Hop 5 | . . 5 Pick Up 5 | . . 5 Fast Attach 2 | . . 2 Attach 4 | . . 4 Detach 1 | . . 1 Swap . | . . . Drop 10 | 4 . 6 Fire 26 | . 16 10 Melee 3 | . . 3 Ram . | . . . Kick . | . . . Crush . | . . . Escape Stasis . | . . . Rewire . | . . . Trap . | . . . Miscellaneous . | . . . Route ------- -11/Scrapyard -10/Materials (discovered 3 exits: *Mat x3) -9/Materials (discovered 3 exits: *Min x2 / Sto) History --------- Turn | Location | Event 3 | -11/Scrapyard | Discovered new exit (range 0) 3 | -11/Scrapyard | Entered Materials 33 | -10/Materials | Identified exit to Materials 95 | -10/Materials | Entered another Materials area 95 | -9/Materials | Evolved 2 slots: Utility x2 123 | -9/Materials | Identified exit to Mines 123 | -9/Materials | Identified exit to Storage 156 | -9/Materials | Core integrity fell below 50% 222 | -9/Materials | Self-destructed Last Messages --------------- 00144_ Dropped Lgt. Assault Rifle. 00153_ Y-45 Defender destroyed. 00160_ U-05 Engineer lays Concrete. 00164_ U-05 Engineer builds a Wall. 00166_ Grenade Launcher destroyed. 00168_ U-05 Engineer lays Concrete. 00169_ The unstable cave ceiling collapses. 00169_ U-05 Engineer lays Concrete. 00170_ U-05 Engineer builds a Wall. 00175_ Acquired Hvy. Hammer. 00182_ U-05 Engineer builds a Wall. 00185_ Y-45 Defender suffers critical hit (Smash). 00185_ Destroyed Heat Sink. 00185_ Y-45 Defender system corrupted by crushing effect. 00186_ U-05 Engineer builds a Wall. 00188_ Y-45 Defender destroyed. 00190_ U-05 Engineer builds a Wall. 00191_ Dropped Wheel. 00194_ Acquired Grenade Launcher. 00199_ U-05 Engineer lays Concrete. Map ----- +----------------------------------------------------+ | ??????????????????# # #???????????????????? | | ??????????????????# # """#???????????????????? | | #???????????####### # """#???????????????????? | | ???????????# # + """#???????????????????? | | ??######### # # #???????????????????? | | """ # ## # # #???????????????????? | | """ # ##""" # ########???????????????????? | | """ # = ##""" # #??????????????????????????? | | """ # " ##""" # #??????????????????????????? | | """ # """ ## # #??????????????????????????? | | ??# """ ####+### #??????????????????????????? | | ##### """ # #??????????????????????????? | | / "" + #??????????????????????????? | | #T### """ # #?######???????????????????? | | ###?# "" #+###### #?!]]!!#???????????????????? | | #??# "" #??????# #?!]]!!#???????????????????? | | #??# " #??????# #? #???????????????????? | | #??# #??????+ #? #???????????????????? | | ######+####??????# ? ????????????????????? | | ## #???????# sk ??????????>??????????? | | ?# #???????# s ??????????????????????? | | ?# #???????#######w#####??????????????????? | | ?#""" #????????????#a #??????????????????? | | ?#""" ############## #??????????????????? | | ?#"S # u/ """ #??????????????????? | | ?#""" # ##### @""" #??????????????????? | | ?# "" + #???# """ #??????????????????? | | ?# # #???#k #??????????????????? | | ?########## """ #???########??????????????????? | | ?????????# """ #?????????????????????????????? | | ?????????# """ ????????????????????????????? | | ?????????+ ??????????????????????????? | | ?????????# ! /?????????????????????????? | | ?????????# ##### #?????????????????????????? | | ?????????#######???? #?????????????????????????? | | ???????????????????? ?????????????????????????? | | ???????????????????? #????????????????????????? | | ????????????????????? ??????????????????????????? | | ?????????????????????>???????????????????????????? | | ?????????????????????????????????????????????????? | | ?????????????????????????????????????????????????? | | ?????????????????????????????????????????????????? | | ?????????????????????????????????????????????????? | | ?????????????????????????????????????????????????? | | ?????????????????????????????????????????????????? | | ?????????????????????????????????????????????????? | | ?????????????????????????????????????????????????? | | ?????????????????????????????????????????????????? | | ?????????????????????????????????????????????????? | | ?????????????????????????????????????????????????? | +----------------------------------------------------+ Best States ------------- Heat Dissipation 28 Coolant Potential 50 Energy Generation 5 Energy Capacity 100 Matter Stores 300 Matter Capacity 300 Sight Range 16 Terrain Scan Density 10 Armor Coverage 225 Evasion (%) 63 Item Schematics ----------------- None Robot Schematics ------------------ None Fabricated ------------ Nothing Alien Tech Used ----------------- None Achievements -------------- None Challenges ------------ None Game ------ Seed WaveArmoredNanoactuators Manual? 0 Play Time 00:05:21 Cumulative 138.1 hours Start 2022.05.01 @ 04:12:35 End 2022.05.01 @ 04:17:44 Sessions 1 Manual Loads 0 Difficulty Rogue Special Mode None Game No. 189 Rogue 188 Adventurer 0 Explorer 1 Win Type - Total 5 Types 5/0/0/0/0/0/0/0/0 Lore% 59 Gallery% 60 Achievement% 50 Wizard Run 0 Options --------- ASCII 1 Keyboard 0 Movement Vi Keybinds 0 Fullscreen 1 Font 18/SmallcapsGlow Map View 76x50 Tactical HUD 1 Map Filters NONE Filters NONE Steam 1 RUN: 588a336b-c04e-4da4-9feb-2f3655053e1c